Cogmind - Beta 17 @@@ ROGUE MODE // 2026.07.08 @ 17:35:40 Player: OBLIQUE Result: Destroyed by H-71 Marshal with Heavy Mass Driver Performance ------------- Evolutions (7) 3500 Regions Visited (17) 3400 Robots Destroyed (58) 290 Value Destroyed (2289) 2289 Prototype IDs (42) 840 Alien Tech Used (2) 400 Bonus (1450) 1450 TOTAL SCORE: 12169 Bonus ------- Follower Combat Kills 50 Registered with UFD 300 Met Optimus in HQ 500 Met Data Miner 300 Met Zhirov 300 Cogmind --------- Core Integrity 0/1300 Matter 185/300 Energy 86/100 System Corruption 6% Temperature Cool (0) Movement Core (50) Location -3/Research Parts ------- > --- POWER (5) -------- (None) > --- PROPULSION (3) --- Improved Antigrav System > --- UTILITY (10) ----- Experimental Signal Interpreter Advanced Launcher Guidance Computer Improved Target Analyzer Improved System Shield > --- WEAPON (3) ------- (None) > --- INVENTORY (5) ---- Light Particle Reactor Advanced Heat Sink Remote Datajack Improved Plasma Cutter Enhanced Force Lance Peak State ------------ > --- POWER ------------ Angular Momentum Engine Neutrino Core Enhanced Fission Core Fusion Reactor > --- PROPULSION ------- Advanced Myomer Leg Advanced Myomer Leg > --- UTILITY ---------- Advanced Power Amplifier Advanced Power Amplifier Advanced Heat Sink Advanced Heat Sink Advanced Heat Sink Makeshift Trap Scanner Improved Hacking Suite Advanced Hacking Suite Improved System Shield Advanced System Shield > --- WEAPON ----------- Variable Charge Gun Proton Cannon Matter Neutralizer > --- INVENTORY -------- Advanced Myomer Leg Advanced Heat Sink Transdimensional Reconstructor Improved Datajack Remote Datajack [Rating: 119] Favorites ----------- Power Ion Engine Engine Ion Engine Power Core Enhanced Fission Core Reactor Light Antimatter Reactor Propulsion Compact Wheel Treads Light Treads Leg Advanced Myomer Leg Wheel Compact Wheel Hover Unit Improved Antigrav System Flight Unit Advanced Surge Thruster Utility Advanced Heat Sink Device Advanced Heat Sink Storage Light Humpback Processor Improved Signal Interpreter Hackware Advanced System Shield Protection Improved Heavy Armor Plating Weapon Variable Charge Gun Energy Gun Variable Charge Gun Energy Cannon Proton Cannon Ballistic Gun KE Penetrator Ballistic Cannon Battle Cannon Launcher Improved Grenade Launcher Special Weapon Remote Datajack Impact Weapon Powered Hammer Slashing Weapon Nanosword Piercing Weapon Enhanced Force Lance Special Melee Weapon Datajack Build | -11 -10 -10 -9 -6 -6 -6 -6 -5 -5 -5 -5 -4 -4 -4 -4 -3 -3 ------- Run | Yrd Mat Sub Scr Fac Low Low Dat Pro Fac Was Fac Fac Upp Upp Zhi Pro Res Slots Evolved 14 | . . . . 8 . . . . 2 . . 2 . . . . 2 Power 4 | . . . . . . . . . 1 . . 2 . . . . 1 Propulsion 1 | . . . . . . . . . . . . . . . . . 1 Utility 8 | . . . . 8 . . . . . . . . . . . . . Weapon 1 | . . . . . . . . . 1 . . . . . . . . Parts Attached 136 | 10 4 6 . 20 6 6 . 5 3 . 34 7 3 10 6 . 16 Power 16 | 2 . 1 . 3 . . . . . . 3 1 1 2 1 . 2 Engine 7 | 2 . 1 . 2 . . . . . . . 1 . 1 . . . Core 5 | . . . . 1 . . . . . . 2 . 1 1 . . . Reactor 4 | . . . . . . . . . . . 1 . . . 1 . 2 Propulsion 21 | 4 . 2 . . 1 . . 2 . . 3 . . . 2 . 7 Treads 3 | 2 . 1 . . . . . . . . . . . . . . . Leg 3 | . . . . . . . . . . . . . . . 2 . 1 Wheel 9 | 2 . 1 . . 1 . . 2 . . 3 . . . . . . Hover 1 | . . . . . . . . . . . . . . . . . 1 Flight 5 | . . . . . . . . . . . . . . . . . 5 Utility 63 | 1 1 1 . 14 1 4 . 3 . . 21 4 1 4 3 . 5 Device 37 | . 1 . . 9 1 2 . 1 . . 14 3 . 4 1 . 1 Storage 4 | 1 . 1 . 1 . . . 1 . . . . . . . . . Processor 13 | . . . . 1 . 2 . 1 . . 6 . . . . . 3 Hackware 5 | . . . . . . . . . . . . 1 1 . 2 . 1 Protection 4 | . . . . 3 . . . . . . 1 . . . . . . Artifact . | . . . . . . . . . . . . . . . . . . Weapon 36 | 3 3 2 . 3 4 2 . . 3 . 7 2 1 4 . . 2 Energy Gun 9 | . 1 1 . 1 2 . . . 1 . 2 1 . . . . . Energy Cannon 6 | . . . . . . . . . . . 2 . . 4 . . . Ballistic Gun 8 | 3 . . . . . 1 . . 1 . 2 . 1 . . . . Ballistic Cannon 5 | . 1 1 . 1 1 . . . 1 . . . . . . . . Launcher 1 | . . . . 1 . . . . . . . . . . . . . Special Weapon 1 | . . . . . . . . . . . . 1 . . . . . Impact Weapon 1 | . . . . . . 1 . . . . . . . . . . . Slashing Weapon 1 | . . . . . . . . . . . . . . . . . 1 Piercing Weapon 1 | . . . . . . . . . . . . . . . . . 1 Special Melee Weapon 3 | . 1 . . . 1 . . . . . 1 . . . . . . Unidentified Prototypes 12 | . 1 . . 2 . 1 . . . . 2 . . . 2 . 4 Parts Lost 65 | . . 4 . 1 1 2 . 11 . . 11 3 . 6 . 18 8 Power 8 | . . 1 . . . . . . . . 1 . . 2 . 4 . Propulsion 10 | . . 1 . . . . . 2 . . 1 . . . . 1 5 Utility 32 | . . 1 . . 1 2 . 7 . . 7 1 . 2 . 8 3 Weapon 15 | . . 1 . 1 . . . 2 . . 2 2 . 2 . 5 . Highest Loss Streak 11 | . . 1 . 1 1 1 . 10 . . 10 2 . 6 . 11 4 To Critical Strikes 1 | . . . . . . . . . . . 1 . . . . . . Average Backups 8 | 2 6 8 18 22 5 3 5 4 2 4 3 4 4 4 3 4 4 Power . | . 1 . 1 3 1 . . . 1 1 . . . . . . . Propulsion . | 1 1 . 1 . . . . . . . . 1 1 1 1 1 1 Utility 1 | . . 2 3 6 . 1 2 1 . . . . 1 1 . 1 1 Weapon 3 | . 3 3 7 8 2 1 2 1 . 2 1 . . . . . . Tool/Special . | . . . . . . . . . . . . . . . . . . Unused Backups 30 | . 5 . . 6 13 1 . . . . 1 . . . 1 . 3 Power 2 | . . . . 1 1 . . . . . . . . . . . . Propulsion 1 | . . . . . . . . . . . . . . . 1 . . Utility 8 | . 1 . . 1 5 . . . . . . . . . . . 1 Weapon 14 | . 4 . . 4 4 1 . . . . 1 . . . . . . Tool/Special 5 | . . . . . 3 . . . . . . . . . . . 2 Average Slot Usage (%) 78 | . 96 94 85 70 82 87 80 42 15 5 75 88 89 88 97 52 25 Engine 6 | . 14 14 14 3 6 6 6 3 . . . 5 5 5 4 1 . Core 3 | . . . . 2 . . . . . . 4 10 12 11 12 4 . Treads 1 | . 19 6 . . . . . . . . . . . . . . . Wheel 12 | . 8 20 28 11 10 13 13 8 5 5 9 5 5 5 2 . . Device 18 | . 10 9 . 18 32 31 20 11 . . 30 25 26 29 31 16 2 Storage 6 | . 14 14 14 8 5 6 6 5 . . . . . . . . . Processor 5 | . . . . 4 6 11 13 5 . . 9 19 10 10 5 . 8 Hackware 2 | . . . . . . . . . . . . 1 8 10 15 15 4 Protection 2 | . . . . 6 6 3 6 1 . . . 5 5 1 . . . Energy Gun 7 | . 1 14 14 4 6 6 6 2 4 . 5 8 10 6 5 1 . Energy Cannon 1 | . . . . . . . . . . . 2 5 . 5 10 4 . Ballistic Gun 1 | . 16 . . . . 4 . 1 5 . 3 . 4 1 . . . Ballistic Cannon 4 | . 6 7 14 2 3 1 . . . . 1 . . . . . . Peak Build Rating 119 | 6 12 15 15 63 65 76 75 76 15 10 83 91 100 104 119 119 81 Average Rating 50 | 4 8 13 14 48 63 68 75 39 9 3 60 82 95 96 112 62 39 On Entrance 46 | . 6 12 13 15 57 65 75 75 2 15 3 74 82 100 103 119 13 Avg Prop Armor Cover (%) 9 | . . 4 . 1 2 2 . 18 . 18 16 . . . . . 21 Naked Turns 84 | . . . . . . . . 84 . . . . . . . . . Heaviest Build 95 | 14 16 51 51 93 89 61 53 53 18 . 63 72 81 95 89 89 17 Greatest Support 60 | 40 40 36 36 36 28 28 28 28 16 3 28 28 28 28 60 60 30 Greatest Overweight (x) 5 | . . 1 1 5 5 3 1 2 1 . 2 2 2 3 2 1 1 Average Overweight (x) 1 | . . . 1 2 2 2 1 . . . 1 2 2 2 1 . . Largest Inventory Capacity 25 | 8 8 25 25 25 25 5 5 5 5 5 5 5 5 5 5 5 5 Average Capacity 11 | 7 8 13 25 25 5 5 5 5 5 5 5 5 5 5 5 5 5 Most Carried 25 | 4 8 14 21 25 24 5 5 5 3 5 5 5 4 5 5 5 5 Average Carried 9 | 2 6 8 18 23 5 4 5 4 2 4 3 4 4 4 4 4 4 Final Capacity 25 | 8 8 25 25 25 5 5 5 5 5 5 5 5 5 5 5 5 5 Final Carried 24 | 4 8 14 21 24 5 5 5 4 2 5 5 4 4 5 5 3 5 Class Distribution -------------------- 40% | Mutant 14% | Skirmisher 9% | Scavenger-Gunner 6% | Derelict-Skirmisher 4% | Hacker-Mutant 4% | Generator-Tank 3% | Tank 3% | Scavenger-Tank Dominant Class ---------------- Mutant | -10/Materials Mutant | -10/Subcaves Mutant | -9/Scraptown Skirmisher | -6/Factory Skirmisher | -6/Lower Caves Derelict-Skirmisher | -6/Lower Caves Derelict-Assassin | -6/Data Miner Mutant | -5/Proximity Caves Mutant | -5/Factory Mutant | -5/Waste Tank | -5/Factory Scavenger-Gunner | -4/Factory Generator-Tank | -4/Upper Caves Scavenger-Gunner | -4/Upper Caves Generator-Gunner | -4/Zhirov Hacker-Mutant | -3/Proximity Caves Mutant | -3/Research Resources | -11 -10 -10 -9 -6 -6 -6 -6 -5 -5 -5 -5 -4 -4 -4 -4 -3 -3 ----------- Run | Yrd Mat Sub Scr Fac Low Low Dat Pro Fac Was Fac Fac Upp Upp Zhi Pro Res Matter Collected 2303 | 189 213 258 . 68 413 118 . 126 . . 513 153 42 110 90 10 . Remotely . | . . . . . . . . . . . . . . . . . . Salvage Created 2467 | . 151 123 . 61 229 138 . 103 . . 564 269 143 358 328 . . Parts 96 | . 6 10 . 2 5 12 . 8 . . 27 9 6 7 4 . . Haulers Intercepted 1 | . 1 . . . . . . . . . . . . . . . . Recyclers Shooed 2 | . 1 . . . . . . . . . 1 . . . . . . Parts Field Recycled . | . . . . . . . . . . . . . . . . . . Retrieved Matter . | . . . . . . . . . . . . . . . . . . Parts Self-Destructed 51 | . . 9 . . 1 15 . 9 . . . . 14 2 1 . . Prevented 9 | . . 1 . . . 1 . . . . . . . 3 2 2 . Parts Restored . | . . . . . . . . . . . . . . . . . . Kills | -11 -10 -10 -9 -6 -6 -6 -6 -5 -5 -5 -5 -4 -4 -4 -4 -3 -3 ------- Run | Yrd Mat Sub Scr Fac Low Low Dat Pro Fac Was Fac Fac Upp Upp Zhi Pro Res Combat Hostiles Destroyed 49 | . 4 6 . 1 8 5 . 4 . . 10 3 4 4 . . . Guns 28 | . 2 5 . . 1 5 . 4 . . 3 1 4 3 . . . Cannons 9 | . 2 1 . 1 . . . . . . 4 1 . . . . . AOE 11 | . . . . . 7 . . . . . 3 1 . . . . . Classes Destroyed 13 | . 4 2 . 1 3 . . . . . 2 1 . . . . . Hauler 1 | . 1 . . . . . . . . . . . . . . . . Recycler 1 | . . . . . . . . . . . 1 . . . . . . Minesweeper 2 | . . . . . 1 . . . . . . . . 1 . . . Turret 1 | . . 1 . . . . . . . . . . . . . . . Watcher 4 | . 1 . . 1 . . . . . . 1 1 . . . . . Swarmer 24 | . 2 4 . . 2 5 . 4 . . 4 . 3 . . . . Grunt 12 | . 2 . . . 4 . . . . . 2 . . 4 . . . Duelist 1 | . . . . . 1 . . . . . . . . . . . . Sentry 5 | . . . . 1 1 . . . . . 2 . 1 . . . . Hunter 2 | . . . . . . . . . . . . 2 . . . . . Programmer 3 | . . . . . . . . . . . 2 1 . . . . . Subdweller 2 | . . 2 . . . . . . . . . . . . . . . Decomposer 1 | . . . . . 1 . . . . . . . . . . . . Best Kill Streak 8 | . 3 2 . 2 8 2 . 4 . . 6 2 3 2 . . . Combat Bots Only 8 | . 2 2 . 1 8 2 . 4 . . 6 2 3 4 . . . Max Kills in Single Turn 4 | . 1 1 . 1 3 1 . 2 . . 4 1 1 1 . . . Gunslinging 1 | . . . . . . . . 1 . . . . . . . . . Exploded 3 | . . . . . 3 . . . . . 3 1 . . . . . Melee . | . . . . . . . . . . . . . . . . . . Uniques/NPCs Destroyed . | . . . . . . . . . . . . . . . . . . Combat | -11 -10 -10 -9 -6 -6 -6 -6 -5 -5 -5 -5 -4 -4 -4 -4 -3 -3 -------- Run | Yrd Mat Sub Scr Fac Low Low Dat Pro Fac Was Fac Fac Upp Upp Zhi Pro Res Hostile Shots Fired 850 | . 24 77 . 61 44 21 . 155 . . 98 54 15 46 . 133 122 Missed 282 | . 7 36 . 23 17 4 . 44 . . 21 22 2 11 . 48 47 Hits 568 | . 17 41 . 38 27 17 . 111 . . 77 32 13 35 . 85 75 Melee 7 | . . . . . . . . 3 . . . . . . . 4 . Projectile 561 | . 17 41 . 38 27 17 . 108 . . 77 32 13 35 . 81 75 Critical Strikes 21 | . . . . . . . . 2 . . 8 1 . 1 . 4 5 Damage Taken 9897 | . 152 528 . 293 482 307 . 1714 . . 1344 441 141 552 . 2168 1775 Core 3338 | . 41 86 . 44 52 16 . 397 . . 445 61 25 84 . 807 1280 Absorbed by Shields 348 | . . . . . . . . . . . . 48 78 222 . . . Ignored by Resistances 175 | . . . . . . . . . . . 175 . . . . . . Core Remaining (%) 51 | 100 . . 49 . . . . 40 . . 55 . . . . 15 . Volleys Fired 179 | . 25 28 . 10 21 11 . 11 1 . 31 11 6 17 3 4 . Largest 3 | . 2 2 . 2 1 2 . 2 2 . 3 3 3 3 3 1 . Hottest 450 | . 50 106 . 93 75 108 . 108 98 . 380 371 450 394 255 75 . Shots Fired 314 | . 50 56 . 16 21 22 . 15 2 . 54 23 15 27 9 4 . Gun 198 | . 29 41 . 6 8 22 . 15 2 . 25 16 15 16 3 . . Cannon 104 | . 21 15 . 10 4 . . . . . 29 7 . 11 6 1 . Launcher 9 | . . . . . 9 . . . . . . . . . . . . Special 3 | . . . . . . . . . . . . . . . . 3 . Kinetic 119 | . 50 15 . 10 4 11 . 11 1 . 14 . 3 . . . . Thermal 140 | . . 28 . 6 8 11 . 4 . . 33 13 12 19 6 . . Explosive 9 | . . . . . 9 . . . . . . . . . . . . Electromagnetic 43 | . . 13 . . . . . . 1 . 7 10 . 8 3 1 . Robot Hit Streak 24 | . 6 13 . 15 8 6 . 7 1 . 17 24 14 19 9 3 . Robot Miss Streak 6 | . 5 6 . 1 2 4 . 2 3 . 4 1 2 2 . 1 . Penetration Max 1 | . . . . . . . . 1 . . . . . . . . . Secondary Targets 8 | . 1 1 . . . 1 . 3 . . . . 2 . . . . Max Gunslinging Chain 1 | . 1 1 . . . 1 . 1 . . . . 1 . . . . Shots Hit Robots 222 | . 34 42 . 11 18 13 . 11 1 . 29 20 10 22 7 4 . Core Hits 122 | . 8 11 . 3 28 8 . 10 1 . 21 10 7 9 6 . . Critical Kills 4 | . 1 . . . . 2 . 1 . . . . . . . . . Critical Parts Destroyed . | . . . . . . . . . . . . . . . . . . Critical Strikes 14 | . 2 3 . 2 1 4 . 1 . . . . . 1 . . . Burn 6 | . . 2 . 1 1 2 . . . . . . . . . . . Destroy 4 | . 1 . . . . 2 . 1 . . . . . . . . . Blast 3 | . 1 1 . 1 . . . . . . . . . . . . . Corrupt 1 | . . . . . . . . . . . . . . 1 . . . Melee Attacks 14 | . . . . . 3 3 . 1 . . . 2 . . . 1 4 Impact 4 | . . . . . . 3 . 1 . . . . . . . . . Slashing . | . . . . . . . . . . . . . . . . . . Piercing 4 | . . . . . . . . . . . . . . . . . 4 Sneak Attacks 6 | . . . . . 3 . . . . . . 2 . . . 1 . Combat Hostiles . | . . . . . . . . . . . . . . . . . . Follow-up Attacks . | . . . . . . . . . . . . . . . . . . Damage Inflicted 6673 | . 499 619 . 231 1173 178 . 176 6 . 1510 724 256 973 263 29 36 Guns 3086 | . 291 425 . 58 138 178 . 165 6 . 537 315 256 633 84 . . Cannons 1782 | . 208 194 . 173 83 . . . . . 426 257 . 233 179 29 . Explosions 1748 | . . . . . 952 . . . . . 537 152 . 107 . . . Melee . | . . . . . . . . . . . . . . . . . . Ramming 57 | . . . . . . . . 11 . . 10 . . . . . 36 Kinetic 1208 | . 499 194 . 173 83 45 . 75 . . 114 . 25 . . . . Thermal 3540 | . . 270 . 58 138 133 . 90 . . 1235 395 231 811 179 . . Explosive 952 | . . . . . 952 . . . . . . . . . . . . Electromagnetic 916 | . . 155 . . . . . . 6 . 151 329 . 162 84 29 . Impact . | . . . . . . . . . . . . . . . . . . Slashing . | . . . . . . . . . . . . . . . . . . Piercing . | . . . . . . . . . . . . . . . . . . Highest Corruption 29 | . . . . . . 1 1 14 . 18 29 . . . . 1 6 Average Corruption 11 | . . . . . . 1 1 8 . 9 20 . . . . 1 5 Corruption Purged 4 | . . . . . . . . . . . 4 . . . . . . Corruption Blocked . | . . . . . . . . . . . . . . . . . . Effects 55 | . . . . . . 2 . 12 . 4 36 . . . . . 1 Message Errors 11 | . . . . . . . . 3 . . 8 . . . . . . Matter Fused 17 | . . . . . . 1 . 2 . 2 12 . . . . . . Heat Flow Errors 7 | . . . . . . . . 2 . 1 4 . . . . . . Energy Discharges 8 | . . . . . . . . 1 . 1 5 . . . . . 1 Parts Rejected 1 | . . . . . . . . . . . 1 . . . . . . Parts Fused 1 | . . . . . . . . . . . 1 . . . . . . Data Loss (minor) 3 | . . . . . . . . 2 . . 1 . . . . . . Data Loss (major) 1 | . . . . . . 1 . . . . . . . . . . . Misfires 1 | . . . . . . . . . . . 1 . . . . . . Alerts 1 | . . . . . . . . . . . 1 . . . . . . Misdirections 2 | . . . . . . . . 2 . . . . . . . . . Weapon Failures 2 | . . . . . . . . . . . 2 . . . . . . Overload Shots 30 | . . . . . . . . . . . 5 6 6 13 . . . Effects 3 | . . . . . . . . . . . 1 1 1 . . . . Energy Bleed 2 | . . . . . . . . . . . . 1 1 . . . . Heat Surge 1 | . . . . . . . . . . . 1 . . . . . . Overflow Damage 247 | . . . . . 17 . . . . . 147 19 . 42 22 . . Projectiles 84 | . . . . . 8 . . . . . 9 19 . 26 22 . . Explosions 163 | . . . . . 9 . . . . . 138 . . 16 . . . Melee . | . . . . . . . . . . . . . . . . . . Knockbacks 5 | . 2 2 . . 1 . . . . . . . . . . . . Impact . | . . . . . . . . . . . . . . . . . . Kinetic 5 | . 2 2 . . 1 . . . . . . . . . . . . Secondary . | . . . . . . . . . . . . . . . . . . Self-Inflicted Damage 311 | . . . . . 102 . . 5 . . 119 . . 72 . . 13 Shots 5 | . . . . . 3 . . . . . 1 . . 1 . . . Rammed 7 | 1 . . . . . . . 2 . . 1 . . . . . 3 Targets Rammed 14 | 1 . . . . . . . 2 . . 1 . . . . . 10 Kicked 7 | . . . . . . . . . . . . . . . . . 7 Crushed . | . . . . . . . . . . . . . . . . . . Highest Temperature 393 | . . . . 91 133 99 . 211 18 84 305 186 393 393 12 . 342 Average Temperature 99 | . . . . 48 60 43 . 72 13 44 124 87 146 154 8 . 129 Received Heat Transfer 1160 | . 21 225 . 81 72 . . 84 . . 126 9 7 162 . 177 196 Effects 2 | . . . . . . . . . . . 1 . . 1 . . . Shutdowns 1 | . . . . . . . . . . . . . . 1 . . . Energy Bleed 1 | . . . . . . . . . . . 1 . . . . . . Siege Activations . | . . . . . . . . . . . . . . . . . . Martial Activations . | . . . . . . . . . . . . . . . . . . Shielding Activations . | . . . . . . . . . . . . . . . . . . Robots Disrupted 1 | . . . . . . . . . . . . 1 . . . . . Combat Hostiles 1 | . . . . . . . . . . . . 1 . . . . . Robots Corrupted . | . . . . . . . . . . . . . . . . . . Combat Hostiles . | . . . . . . . . . . . . . . . . . . Parts Fried 1 | . . . . . . . . . . . . 1 . . . . . Impact Corruptions . | . . . . . . . . . . . . . . . . . . Robots Melted 1 | . . . . . . . . . . . . . . 1 . . . Combat Hostiles 1 | . . . . . . . . . . . . . . 1 . . . Parts Melted 13 | . . 1 . . 1 1 . 2 . . 3 1 1 3 . . . Heat Transferred 5010 | . . 740 . 161 385 500 . 200 . . 1079 459 385 935 166 . . Parts Sabotaged . | . . . . . . . . . . . . . . . . . . Parts Stolen . | . . . . . . . . . . . . . . . . . . Parts Stripped . | . . . . . . . . . . . . . . . . . . Power Chain Reactions 1 | . . . . . . . . . . . . . . 1 . . . Alert | -11 -10 -10 -9 -6 -6 -6 -6 -5 -5 -5 -5 -4 -4 -4 -4 -3 -3 ------- Run | Yrd Mat Sub Scr Fac Low Low Dat Pro Fac Was Fac Fac Upp Upp Zhi Pro Res Maximum Alert Level 1 | . . . . . . . . . . . . . . . . . 1 Low Security (%) 98 | 100 100 . . 100 . . . . 100 100 100 100 . . . . 87 Level 1 1 | . . . . . . . . . . . . . . . . . 12 Level 2 . | . . . . . . . . . . . . . . . . . . Level 3 . | . . . . . . . . . . . . . . . . . . Level 4 . | . . . . . . . . . . . . . . . . . . Level 5 . | . . . . . . . . . . . . . . . . . . High Security . | . . . . . . . . . . . . . . . . . . Max Security . | . . . . . . . . . . . . . . . . . . Peak Influence 309 | . 50 . . 37 . . . . 18 . 139 184 . . . . 309 Initial 37 | . . . . . . . . . 18 . . 37 . . . . 13 Average 27 | . 16 . . 3 . . . . 10 . 40 27 . . . . 101 Influence Increases 3325 | . 158 1030 . 99 255 110 . 240 . . 359 249 90 95 10 127 503 Destroy 0b10 Robot/C 980 | . 80 100 . 20 160 100 . 80 . . 200 60 80 80 . 20 . Destroy 0b10 Robot/NC 50 | . 10 . . 5 5 . . . . . 10 5 . 5 10 . . Destroy Leader 150 | . 24 . . 12 . 10 . 10 . . 52 22 10 10 . . . Allied During Kill 2 | . . . . . . . . . . . . . . . . 2 . Successful Hack 143 | . 42 . . 2 . . . . . . 29 10 . . . . 60 Disable Machine 105 | . . . . 15 . . . . . . 30 60 . . . . . Destroy Structure 140 | . 2 . . . . . . . . . 38 92 . . . . 8 Partial Spotted 105 | . . . . . . . . . . . . . . . . . 105 Lose Combat Pursuer 1650 | . . 930 . 45 90 . . 150 . . . . . . . 105 330 Influence Decreases 3026 | . 152 228 808 99 255 102 8 210 30 . 283 178 237 95 10 107 224 Entered New Map 934 | . . 4 808 . . . 8 . 12 . . 39 56 . . . 7 Time Decay 1630 | . 152 194 . 89 205 92 . 130 18 . 178 119 181 55 10 80 127 Lost Part 400 | . . 30 . 10 10 10 . 80 . . 105 20 . 40 . 15 80 Lost Ally 62 | . . . . . 40 . . . . . . . . . . 12 10 Squads Dispatched 23 | . . . . 6 . . . . 1 . 6 4 . . . 1 5 Investigation 9 | . . . . 4 . . . . . . 1 2 . . . . 2 Extermination 4 | . . . . 1 . . . . . . 1 1 . . . . 1 Reinforcement 6 | . . . . 1 . . . . 1 . 1 1 . . . . 2 Assault 1 | . . . . . . . . . . . . . . . . 1 . Garrison 3 | . . . . . . . . . . . 3 . . . . . . Intercept . | . . . . . . . . . . . . . . . . . . Searches Triggered . | . . . . . . . . . . . . . . . . . . Data Miner Redirects 1 | . . . . . . . . . . . . 1 . . . . . Construction Impeded 1 | . . . . . . . . . . . 1 . . . . . . Haulers Reinforced 1 | . . . . . . . . . . . . . . . . . 1 Active Scanning Responses . | . . . . . . . . . . . . . . . . . . Cargo Convoy Interrupts 1 | . . . . 1 . . . . . . . . . . . . . Stealth | -11 -10 -10 -9 -6 -6 -6 -6 -5 -5 -5 -5 -4 -4 -4 -4 -3 -3 --------- Run | Yrd Mat Sub Scr Fac Low Low Dat Pro Fac Was Fac Fac Upp Upp Zhi Pro Res Distress Signals 2 | . . . . 1 . . . . . . . . . . . . 1 Communications Jammed . | . . . . . . . . . . . . . . . . . . Distress Signals . | . . . . . . . . . . . . . . . . . . Times Spotted 186 | . 7 50 . 4 14 8 . 15 1 6 12 11 4 4 . 11 39 Peak Tracking Total 14 | . 4 4 . 4 9 4 . 8 1 6 7 4 3 4 . 8 14 Tactical Retreats 34 | . . 8 . 2 4 . . 5 . 2 . . . . . 5 8 Traps | -11 -10 -10 -9 -6 -6 -6 -6 -5 -5 -5 -5 -4 -4 -4 -4 -3 -3 ------- Run | Yrd Mat Sub Scr Fac Low Low Dat Pro Fac Was Fac Fac Upp Upp Zhi Pro Res Traps Triggered 8 | . . . . 3 . . . . 1 . 4 . . . . . . Indirectly . | . . . . . . . . . . . . . . . . . . Trap Hack Attempts 38 | . 24 3 . . . . . . . . 11 . . . . . . Triggered . | . . . . . . . . . . . . . . . . . . Disarmed 2 | . 2 . . . . . . . . . . . . . . . . Reprogrammed 2 | . . 1 . . . . . . . . 1 . . . . . . Reused 1 | . . . . . . 1 . . . . . . . . . . . Traps Extracted . | . . . . . . . . . . . . . . . . . . Installed 9 | . . . . . 4 1 . . . . . . . 4 . . . Triggered 1 | . . . . . . 1 . . . . . . . . . . . Most Traps Carried 2 | . . . 1 1 2 1 . . . . . . . 2 2 . . Machines | -11 -10 -10 -9 -6 -6 -6 -6 -5 -5 -5 -5 -4 -4 -4 -4 -3 -3 ---------- Run | Yrd Mat Sub Scr Fac Low Low Dat Pro Fac Was Fac Fac Upp Upp Zhi Pro Res Machines Disabled 11 | . . 2 . 1 2 . . . . . 2 4 . . . . . Max in Single Turn 4 | . . 1 . 1 1 . . . . . 1 4 . . . . . Garrison Access 1 | . . . . . . . . . . . . . . . . . 1 Machines Repaired . | . . . . . . . . . . . . . . . . . . Machines Dismantled . | . . . . . . . . . . . . . . . . . . Machines Sabotaged . | . . . . . . . . . . . . . . . . . . Overloaded Fab Kills . | . . . . . . . . . . . . . . . . . . Hacking | -11 -10 -10 -9 -6 -6 -6 -6 -5 -5 -5 -5 -4 -4 -4 -4 -3 -3 --------- Run | Yrd Mat Sub Scr Fac Low Low Dat Pro Fac Was Fac Fac Upp Upp Zhi Pro Res Machines Accessed 33 | . 1 . 2 3 1 1 3 . . . 4 4 . . 4 . 10 Terminals 12 | . 1 . . . . . . . . . 3 2 . . . . 6 Fabricators 2 | . . . . . . . . . . . . . . . . . 2 Repair Stations . | . . . . . . . . . . . . . . . . . . Recycling Units 4 | . . . . 2 . . . . . . . 2 . . . . . Scanalyzers 3 | . . . . 1 . . . . . . 1 . . . . . 1 Garrison Access 1 | . . . . . . . . . . . . . . . . . 1 Total Hacks 99 | . 5 . 2 5 1 1 16 . . . 21 7 . . 16 . 25 Successful 67 | . 3 . 2 5 1 1 16 . . . 11 4 . . 16 . 8 Failed 32 | . 2 . . . . . . . . . 10 3 . . . . 17 Catastrophic 5 | . . . . . . . . . . . 1 1 . . . . 3 Database Lockouts . | . . . . . . . . . . . . . . . . . . Manual 97 | . 73 . . 2 . . . . . . 8 6 . . . . 8 Terminals 38 | . 5 . . . . . . . . . 16 5 . . . . 12 Fabricators 6 | . . . . . . . . . . . . . . . . . 6 Repair Stations . | . . . . . . . . . . . . . . . . . . Recycling Units 4 | . . . . 2 . . . . . . . 2 . . . . . Scanalyzers 13 | . . . . 3 . . . . . . 5 . . . . . 5 Garrison Access 2 | . . . . . . . . . . . . . . . . . 2 Terminal Hacks 43 | . 2 . 2 . 1 1 16 . . . 4 . . . 16 . 1 Record 7 | . . . 1 . . . 2 . . . . . . . 4 . . Part Schematic 12 | . . . . . . . 8 . . . . . . . 4 . . Robot Schematic 3 | . . . . . . . 3 . . . . . . . . . . Robot Analysis 5 | . 1 . . . . . . . . . . . . . 4 . . Prototype ID Bank 8 | . 1 . . . . . 3 . . . . . . . 4 . . Open Door 2 | . . . . . 1 1 . . . . . . . . . . . Open DSF 1 | . . . . . . . . . . . . . . . . . 1 Fabricator Index 1 | . . . . . . . . . . . 1 . . . . . . Alert Level 1 | . . . . . . . . . . . 1 . . . . . . Zone Layout 2 | . . . . . . . . . . . 2 . . . . . . Proto ID Catalog 1 | . . . 1 . . . . . . . . . . . . . . Fabricator Hacks 1 | . . . . . . . . . . . . . . . . . 1 Load Schematic 1 | . . . . . . . . . . . . . . . . . 1 Repair Station Hacks . | . . . . . . . . . . . . . . . . . . Recycling Unit Hacks . | . . . . . . . . . . . . . . . . . . Scanalyzer 10 | . . . . 3 . . . . . . 4 . . . . . 3 Insert Component 1 | . . . . . . . . . . . . . . . . . 1 Analyze 1 | . . . . . . . . . . . . . . . . . 1 Retrieve Study 8 | . . . . 3 . . . . . . 4 . . . . . 1 Garrison Access Hacks 1 | . . . . . . . . . . . . . . . . . 1 Seal Access 1 | . . . . . . . . . . . . . . . . . 1 Unauthorized Hacks 12 | . 1 . . 2 . . . . . . 3 4 . . . . 2 Terminals 8 | . 1 . . . . . . . . . 3 2 . . . . 2 Assimilate 1 | . . . . . . . . . . . . . . . . . 1 Botnet 6 | . 1 . . . . . . . . . 2 2 . . . . 1 Search 1 | . . . . . . . . . . . 1 . . . . . . Fabricators . | . . . . . . . . . . . . . . . . . . Repair Stations . | . . . . . . . . . . . . . . . . . . Recycling Units 4 | . . . . 2 . . . . . . . 2 . . . . . Fedlink 4 | . . . . 2 . . . . . . . 2 . . . . . Scanalyzers . | . . . . . . . . . . . . . . . . . . Garrison Access . | . . . . . . . . . . . . . . . . . . Data Cores Recovered . | . . . . . . . . . . . . . . . . . . Used . | . . . . . . . . . . . . . . . . . . Hacking Detections 16 | . 1 . . 1 . . . . . . 3 2 . . . . 9 Full Trace Events 3 | . 1 . . . . . . . . . . . . . . . 2 Feedback Events . | . . . . . . . . . . . . . . . . . . Feedback Blocked . | . . . . . . . . . . . . . . . . . . Robot Schematics Acquired 3 | . . . . . . . 3 . . . . . . . . . . Robots Built . | . . . . . . . . . . . . . . . . . . Authchips . | . . . . . . . . . . . . . . . . . . Time . | . . . . . . . . . . . . . . . . . . Total Robot Build Rating . | . . . . . . . . . . . . . . . . . . Part Schematics Acquired 13 | . . . . . . . 8 . . . . . . . 4 . 1 Parts Built . | . . . . . . . . . . . . . . . . . . Authchips . | . . . . . . . . . . . . . . . . . . Time . | . . . . . . . . . . . . . . . . . . Total Part Build Rating . | . . . . . . . . . . . . . . . . . . Part Studies Acquired 8 | . . . . 3 . . . . . . 4 . . . . . 1 Parts Repaired . | . . . . . . . . . . . . . . . . . . Time . | . . . . . . . . . . . . . . . . . . Parts Recycled . | . . . . . . . . . . . . . . . . . . Recycled Matter . | . . . . . . . . . . . . . . . . . . Retrieved Matter . | . . . . . . . . . . . . . . . . . . Retrieved Components . | . . . . . . . . . . . . . . . . . . Parts Scanalyzed 1 | . . . . . . . . . . . . . . . . . 1 Part Schematics Acquired 1 | . . . . . . . . . . . . . . . . . 1 Parts Damaged . | . . . . . . . . . . . . . . . . . . Bothacking | -11 -10 -10 -9 -6 -6 -6 -6 -5 -5 -5 -5 -4 -4 -4 -4 -3 -3 ------------ Run | Yrd Mat Sub Scr Fac Low Low Dat Pro Fac Was Fac Fac Upp Upp Zhi Pro Res Used RIF Installer . | . . . . . . . . . . . . . . . . . . Robots Hacked . | . . . . . . . . . . . . . . . . . . Non-combat . | . . . . . . . . . . . . . . . . . . Combat . | . . . . . . . . . . . . . . . . . . Robot Hacks Applied . | . . . . . . . . . . . . . . . . . . Relay Couplers Released 3 | . . . . . . . . . . . . 3 . . . . . Programmers 3 | . . . . . . . . . . . . 3 . . . . . Fabnet Peak Effective % . | . . . . . . . . . . . . . . . . . . Robots Rewired 5 | . . . . . 2 . . . . . . 1 . . . 2 . Allies Hacked . | . . . . . . . . . . . . . . . . . . Hacks Repelled . | . . . . . . . . . . . . . . . . . . Allies | -11 -10 -10 -9 -6 -6 -6 -6 -5 -5 -5 -5 -4 -4 -4 -4 -3 -3 -------- Run | Yrd Mat Sub Scr Fac Low Low Dat Pro Fac Was Fac Fac Upp Upp Zhi Pro Res Total Allies 6 | . . . . . 2 . . . . . . 1 . . . 2 1 Largest Group 2 | . . . . . 2 . . . . . . 1 . . . 1 1 Highest-Rated Group 49 | . . . . . 40 . . . . . . 49 . . . 48 45 Highest-Rated Ally 49 | . . . . . 20 . . . . . . 49 . . . 48 45 Initial UFD Resources 60 | . . . . 24 38 38 38 40 40 40 40 44 58 58 58 60 60 Total Orders . | . . . . . . . . . . . . . . . . . . Ally Attacks 5 | . . . . . 1 . . . . . . 1 . . . 3 . Total Damage 134 | . . . . . 32 . . . . . . 23 . . . 79 . Kills 1 | . . . . . . . . . . . . . . . . 1 . Allies Corrupted . | . . . . . . . . . . . . . . . . . . Allies Melted . | . . . . . . . . . . . . . . . . . . Intel | -11 -10 -10 -9 -6 -6 -6 -6 -5 -5 -5 -5 -4 -4 -4 -4 -3 -3 ------- Run | Yrd Mat Sub Scr Fac Low Low Dat Pro Fac Was Fac Fac Upp Upp Zhi Pro Res Active Infowar (turns) 5420 | . . . . 818 959 768 78 188 . . 645 490 664 296 294 220 . Sensors 3430 | . . . . 608 959 360 . . . . 395 329 664 115 . . . IFF 553 | . . . . 30 . . . . . . 362 161 . . . . . Terrain 2809 | . . . . 818 959 768 78 186 . . . . . . . . . Traps 2972 | . . . . 346 959 768 78 126 . . . . . 181 294 220 . Jamming 526 | . . . . . . 526 . . . . . . . . . . . ECM 1 | . . . . . . . . . . . 1 . . . . . . Robot Analysis Total 5 | . 1 . . . . . . . . . . . . . 4 . . Derelict Logs Recovered 7 | . . . 2 . . 2 . 1 . . . . 1 1 . . . Drone Launches . | . . . . . . . . . . . . . . . . . . Drone Recoveries . | . . . . . . . . . . . . . . . . . . Exploration | -11 -10 -10 -9 -6 -6 -6 -6 -5 -5 -5 -5 -4 -4 -4 -4 -3 -3 ------------- Run | Yrd Mat Sub Scr Fac Low Low Dat Pro Fac Was Fac Fac Upp Upp Zhi Pro Res Turns Passed 9449 | 75 431 836 1547 853 959 768 78 352 49 137 793 490 664 438 294 388 297 Spaces Moved 7641 | 48 221 513 1317 499 637 574 75 428 48 235 555 323 488 272 164 435 809 Core 1107 | 3 . . . . . . . 253 . 235 51 . . . . 297 268 Treads 315 | 25 114 176 . . . . . . . . . . . . . . . Legs 221 | . . . . . . . . . . . . . . . 82 138 1 Wheels 5458 | 20 107 337 1317 499 637 574 75 175 48 . 504 323 488 272 82 . . Hover . | . . . . . . . . . . . . . . . . . . Flight 540 | . . . . . . . . . . . . . . . . . 540 Fastest Speed 7 | 50 90 90 117 117 105 105 105 50 90 50 50 130 130 115 130 50 7 Average Speed 105 | 121 126 127 117 130 131 122 105 71 90 50 101 130 130 130 160 80 27 Slowest Speed 260 | 160 160 160 117 165 165 135 105 120 105 50 120 130 130 145 260 190 120 Overloaded Moves 283 | . . . . . . . . . . . . . . . . . 283 Propulsion Burnouts . | . . . . . . . . . . . . . . . . . . Robots Hopped 1 | . . . . . . . . . . . . . . . . . 1 Potential Cave-ins . | . . . . . . . . . . . . . . . . . . Cave-ins Triggered . | . . . . . . . . . . . . . . . . . . Teleports 1 | . . . . . . . . . . . . . . . . . 1 Exploration Rate (%) 46 | 3 32 19 88 9 73 67 68 74 2 98 19 10 77 47 60 70 26 Regions Visited 17 Branch Regions 10 Pre-discovered Areas 9 | . . . 2 1 . 1 1 . . . . . 1 . 3 . . Known Exits Taken 8 | . . . . 1 1 1 1 . . . 1 1 1 1 . . . Unknown Exits Taken 7 | 1 1 1 1 . . . . 1 . . . . . . 1 1 . Scrap Searched 28 | . . 7 2 . 3 9 . 2 . . . . 2 2 . 1 . Spaces Dug 16 | . . . . . . 2 . . . . 7 3 . . . . 4 Terrain Destroyed 155 | . . . . . 66 2 . . . . 19 51 2 11 . . 4 Melee 6 | . . . . . . 2 . . . . . . . . . . 4 Projectile 20 | . . . . . . . . . . . 14 3 2 1 . . . AOE 129 | . . . . . 66 . . . . . 5 48 . 10 . . . Terrain Rammed . | . . . . . . . . . . . . . . . . . . Walls Destroyed . | . . . . . . . . . . . . . . . . . . Machines Disabled . | . . . . . . . . . . . . . . . . . . Actions | -11 -10 -10 -9 -6 -6 -6 -6 -5 -5 -5 -5 -4 -4 -4 -4 -3 -3 --------- Run | Yrd Mat Sub Scr Fac Low Low Dat Pro Fac Was Fac Fac Upp Upp Zhi Pro Res Total 8692 | 60 326 638 1323 694 742 615 74 455 52 255 723 373 503 329 188 470 872 Wait 421 | . 28 68 . 107 58 7 . 3 . 18 50 22 7 11 . 25 17 Move 7623 | 47 220 512 1316 498 636 573 74 427 48 234 554 322 487 271 163 434 807 Hop 1 | . . . . . . . . . . . . . . . . . 1 Pick Up 77 | . 13 13 7 13 5 5 . 2 . . 7 1 . 2 3 . 6 Fast Attach 109 | 8 2 3 . 13 4 3 . 4 1 . 32 4 3 14 6 . 12 Attach 28 | . . 2 . 3 2 2 . 3 2 . 5 2 . . . 2 5 Detach 31 | 2 . 1 . 9 . 1 . . . 3 3 4 . 2 2 . 4 Swap 33 | 2 4 3 . 5 3 2 . 1 . . 4 4 . . 3 . 2 Drop 77 | . 10 5 . 20 6 7 . 1 . . 9 1 . 8 6 . 4 Fire 179 | . 25 28 . 10 21 11 . 11 1 . 31 11 6 17 3 4 . Melee 14 | . . . . . 3 3 . 1 . . . 2 . . . 1 4 Ram 6 | . . . . . . . . 2 . . 1 . . . . . 3 Kick 7 | . . . . . . . . . . . . . . . . . 7 Crush 1 | 1 . . . . . . . . . . . . . . . . . Escape Stasis 32 | . . . . 16 . . . . . . 16 . . . . . . Rewire 6 | . . . . . . . . . . . . . . . 2 4 . Trap 47 | . 24 3 . . 4 1 . . . . 11 . . 4 . . . Miscellaneous . | . . . . . . . . . . . . . . . . . . Route ------- -11/Scrapyard -10/Materials (discovered 2 exits: [*Min] / [*Sub]) -10/Subcaves (discovered 2 exits: [*Rec] / *Scr) -9/Scraptown (discovered 2 exits: *Fac x2) -6/Factory -6/Lower Caves -6/Lower Caves -6/Data Miner -5/Proximity Caves -5/Factory -5/Waste -5/Factory -4/Factory -4/Upper Caves -4/Upper Caves -4/Zhirov -3/Proximity Caves -3/Research History --------- Turn | Location | Event 9 | -11/Scrapyard | Discovered new exit (range 16) 76 | -11/Scrapyard | Entered Materials 316 | -10/Materials | Build established: Mutant 414 | -10/Materials | Discovered new exit (range 10) 454 | -10/Materials | Discovered new exit (range 16) 507 | -10/Materials | Entered Subcaves 508 | -10/Subcaves | Approached by a straggling Scientist 900 | -10/Subcaves | Discovered new exit (range 8) 1019 | -10/Subcaves | Scientist uncovered a shortcut to Scraptown 1044 | -10/Subcaves | Disturbed a concealed Subdweller 1054 | -10/Subcaves | Core integrity fell below 50% 1343 | -10/Subcaves | Entered Scraptown 1607 | -9/Scraptown | Scanned Subdweller tech in exchange for log data 1611 | -9/Scraptown | Learned location of Armory (-3) 1612 | -9/Scraptown | Learned Research terminal intel 1624 | -9/Scraptown | Discovered new exit (range 11) 1696 | -9/Scraptown | Visited Fellowship of the Rings 1706 | -9/Scraptown | Heard Great Nut preacher, LISTEN AND RECITE! 1714 | -9/Scraptown | Visited Cave Peace 1726 | -9/Scraptown | Visited The Evicted 1736 | -9/Scraptown | Visited TADAMA 1776 | -9/Scraptown | Visited Junk Repository 1966 | -9/Scraptown | Visited SPCMW 1982 | -9/Scraptown | Visited CPS Storage 2002 | -9/Scraptown | Visited UFD Registry 2005 | -9/Scraptown | Registered with UFD as "Protowalker" 2034 | -9/Scraptown | Visited Science Guys 2088 | -9/Scraptown | Visited Scrapoid Pod Storage 2115 | -9/Scraptown | Visited LU-1G1's Boring Crew 2132 | -9/Scraptown | Visited Scrap Suit Storage 2147 | -9/Scraptown | Visited Observation Area 2158 | -9/Scraptown | Visited Research Penetration Think Tank 2184 | -9/Scraptown | Visited Science Testing Area 2205 | -9/Scraptown | Visited Curators Association 2241 | -9/Scraptown | Visited Chapter 10 2747 | -9/Scraptown | Discovered new exit (range 5) 2821 | -9/Scraptown | Met Optimus 2821 | -9/Scraptown | Accepted into 0bPrime 2890 | -9/Scraptown | Entered Factory 2890 | -6/Factory | Evolved 8 slots: Utility x8 3080 | -6/Factory | Discovered new exit (range 7) 3213 | -6/Factory | Found Launcher Loader 3478 | -6/Factory | Build established: Skirmisher 3626 | -6/Factory | Identified exit to Lower Caves 3635 | -6/Factory | Cargo convoy interrupted 3651 | -6/Factory | Loaded intel: 8 recycling unit locations 3699 | -6/Factory | Learned location of Protoforge (-2) 3743 | -6/Factory | Entered Lower Caves 3781 | -6/Lower Caves | Attracted the attention of an 0b10 outpost 3815 | -6/Lower Caves | Destroyed 8 combat bots 3920 | -6/Lower Caves | Spotted B-75 Beast 4476 | -6/Lower Caves | Encountered a Warlord checkpoint 4606 | -6/Lower Caves | Discovered new exit (range 15) 4624 | -6/Lower Caves | Identified exit to Lower Caves 4702 | -6/Lower Caves | Entered another Lower Caves area 4710 | -6/Lower Caves | Encountered a Warlord checkpoint 5147 | -6/Lower Caves | Found Prototype Device 5147 | -6/Lower Caves | Identified Heart of Steel 5187 | -6/Lower Caves | Build established: Derelict-Skirmisher 5423 | -6/Lower Caves | Identified exit to Data Miner 5470 | -6/Lower Caves | Entered Data Miner 5470 | -6/Data Miner | Discovered new exit (range 7) 5490 | -6/Data Miner | Met Data Miner 5510 | -6/Data Miner | Learned location of Section 7 (-2) 5510 | -6/Data Miner | Acquired the access code to Warlord's prototype stash 5524 | -6/Data Miner | Received God Mode back door access code from Data Miner 5547 | -6/Data Miner | Identified exit to Proximity Caves 5548 | -6/Data Miner | Entered Proximity Caves 5666 | -5/Proximity Caves | Spotted B-75 Beast 5700 | -5/Proximity Caves | System corruption reached 10% 5771 | -5/Proximity Caves | Released all parts (6) 5788 | -5/Proximity Caves | Core integrity fell below 50% 5799 | -5/Proximity Caves | Lost 10 parts (2n6u2w) 5851 | -5/Proximity Caves | Learned 8 Factory zone layouts 5895 | -5/Proximity Caves | Discovered new exit (range 9) 5900 | -5/Proximity Caves | Entered Factory 5900 | -5/Factory | Evolved 2 slots: Power x1, Weapon x1 5901 | -5/Factory | Identified exit to Factory 5949 | -5/Factory | Sucked down chute 5949 | -5/Factory | Entered Waste 5963 | -5/Waste | Spotted C-40 Crusher 5964 | -5/Waste | EMP discharged 5964 | -5/Waste | Spotted C-40 Crusher 5969 | -5/Waste | Spotted C-40 Crusher 5975 | -5/Waste | Spotted C-40 Crusher 5990 | -5/Waste | Spotted C-40 Crusher 5992 | -5/Waste | Spotted C-40 Crusher 6009 | -5/Waste | Build established: Mutant 6064 | -5/Waste | EMP discharged 6064 | -5/Waste | System corruption reached 10% 6075 | -5/Waste | Discovered new exit (range 12) 6086 | -5/Waste | Entered Factory 6585 | -5/Factory | Garrison activated, responded to threat 6648 | -5/Factory | Lost 10 parts (1p1n6u2w) 6869 | -5/Factory | Discovered exit to Factory (range 8) 6879 | -5/Factory | Entered another Factory area 6879 | -4/Factory | Evolved 2 slots: Power x2 6919 | -4/Factory | Build established: Scavenger-Gunner 7218 | -4/Factory | Loaded intel: 8 recycling unit locations 7255 | -4/Factory | Discovered new exit (range 7) 7273 | -4/Factory | Identified exit to Upper Caves 7321 | -4/Factory | Incoming investigation squad redirected 7369 | -4/Factory | Entered Upper Caves 7371 | -4/Upper Caves | Attracted the attention of an 0b10 checkpoint 7800 | -4/Upper Caves | Encountered a Warlord checkpoint 7826 | -4/Upper Caves | Discovered new exit (range 10) 7837 | -4/Upper Caves | Identified exit to Upper Caves 8012 | -4/Upper Caves | Build established: Generator-Tank 8033 | -4/Upper Caves | Entered another Upper Caves area 8205 | -4/Upper Caves | Lost 6 parts (2p2u2w) 8276 | -4/Upper Caves | Learned Research terminal intel 8449 | -4/Upper Caves | Discovered new exit (range 14) 8470 | -4/Upper Caves | Identified exit to Zhirov 8471 | -4/Upper Caves | Entered Zhirov 8471 | -4/Zhirov | Discovered new exit (range 4) 8495 | -4/Zhirov | Met Zhirov 8509 | -4/Zhirov | Build established: Scavenger-Gunner 8518 | -4/Zhirov | Learned location of Quarantine (-2) 8518 | -4/Zhirov | Learned location of Testing (-3) 8518 | -4/Zhirov | Learned location of Command (-1) 8531 | -4/Zhirov | Zhirov requested help retrieving the SGEMP Prototype 8553 | -4/Zhirov | Found Alien Artifact 8553 | -4/Zhirov | Identified Integrated Dissipator 8553 | -4/Zhirov | Installed Integrated Dissipator, increased core heat dissipation (+20) 8696 | -4/Zhirov | Found Alien Artifact 8765 | -4/Zhirov | Entered Proximity Caves 8807 | -3/Proximity Caves | Spotted B-86 Titan 8928 | -3/Proximity Caves | Lost 7 parts (3p2u2w) 8978 | -3/Proximity Caves | Attracted the attention of an 0b10 outpost 8997 | -3/Proximity Caves | Core integrity fell below 50% 9036 | -3/Proximity Caves | Lost 11 parts (1p1n6u3w) 9038 | -3/Proximity Caves | Core integrity fell below 20% 9146 | -3/Proximity Caves | Discovered new exit (range 14) 9153 | -3/Proximity Caves | Entered Research 9153 | -3/Research | Evolved 2 slots: Power x1, Propulsion x1 9154 | -3/Research | Loaded intel: 20 terminal locations 9166 | -3/Research | Build established: Hacker-Mutant 9194 | -3/Research | Found Prototype Processor 9194 | -3/Research | Identified Exp. Signal Interpreter 9198 | -3/Research | Found Exp. Signal Interpreter 9236 | -3/Research | Identified Transdimensional Reconstructor 9236 | -3/Research | Warped through subspace 9252 | -3/Research | Spotted B-86 Titan 9267 | -3/Research | Core integrity fell below 50% 9397 | -3/Research | Spotted B-86 Titan 9420 | -3/Research | Core integrity fell below 20% 9444 | -3/Research | Lost 4 parts (4n) 9450 | -3/Research | Destroyed by H-71 Marshal with Heavy Mass Driver Last Messages --------------- 09385_ Acquired Imp. Plasma Cutter. 09411_ Adv. Surge Thruster+ destroyed. 09412_ Slug penetrates Wall. 09412_ Adv. Surge Thruster+ destroyed. 09413_ Dropped Mic. Antimatter Reactor. 09417_ Critical hit (Burn: +37). 09417_ P-80 Master resets G-67 Veteran, system corruption cleaned. 09419_ Slammed into A-15 Conveyor. 09420_ Critical hit (Burn: +50). 09420_ A-15 Conveyor calls for reinforcements. 09420_ ALERT: Hostile activity reported, dispatching reinforcements to area. 09423_ Acquired Imp. Antigrav System. 09444_ ALERT: Suspicious intruders detected, dispatching Cutter reinforcements to area. 09446_ Penetrated by Slug. 09448_ Slug penetrates Wall. 09448_ Exp. Cooling System destroyed. 09448_ Knocked back. Map ----- +----------------------------------------------------+ | ???????# # #???# #???######??????????? | | ???????# # #???# #??? #??????????? | | #+?????# # ! #???# #?? #??????????? | | ?? # #???# #?? #??????????? | | ##########???# #? ! #??????????? | | #????????????# #? #??????????? | | #????????????# # #??????????? | | #+###########????????????# # #??????????? | | ?????????????????????????# + #??????????? | | ?????????????????????????# # #??????????? | | ?????????????????#+##+####p ##########??????????? | | ?????????????????# #??????????????????? | | ???????????####### #??????????????????? | | ???????????# #??????????????????? | | ???????????? ##### #??????????????????? | | ?????????????????# #??????????????????? | | ?????????????????######## #??????????????????? | | ???????????????????????# #??????????????????? | | ???????????????????????#T #??????????????????? | | ???????????????????????## #??????????????????? | | ??????????????########### #??????????????????? | | ??????????????# + #??????????????????? | | ??????????????# ! # #??????????????????? | | ??????????????# ;% #??????????????????? | | ??????????????# # ## #?????????? | | ??????????????#== % ;@ #?????????? | | ??????????????#== # ????????? | | ??????????????#== + H ????????? | | ??????????????# # ] ?????????? | | ??????????????########### #?????????? | | ????????????????????????####+### ??????????? | | ????????????????????????????????#######??????????? | | ?????????????????????????????????????????????????? | | ?????????????????????????????????????????????????? | | ?????????????????????????????????????????????????? | | ?????????????????????????????????????????????????? | | ?????????????????????????????????????????????????? | | | | | | | | | | | | | | | | | | | | | | | | | | | +----------------------------------------------------+ Best States ------------- Heat Dissipation 139 Coolant Potential 80 Energy Generation 102 Energy Capacity 1050 Matter Stores 300 Matter Capacity 300 Sight Range 16 Robot Scan Range 16 Terrain Scan Range 20 Terrain Scan Density 85 Jamming Range 12 Power Amplification 60 Armor Coverage 600 Resistance: KI 25 Resistance: TH 25 Resistance: EX 25 Resistance: EM 25 Evasion (%) 66 Targeting Accuracy 15 Melee Accuracy 6 Launcher Accuracy 40 Target Analysis 6 Recoil Reduction 2 Matter Filtering 30 Particle Charging 20 Kinecelleration 40 Offensive Hacking 26 Defensive Hacking 26 Item Schematics ----------------- Combat Drone Bay | -6/Data Miner | Free Lgt. Regenerative Plating | -6/Data Miner | Free Enh. Flexi-carbon Leg | -6/Data Miner | Free Adv. EM Disruption Field | -6/Data Miner | Free Thunder Hammer | -6/Data Miner | Free Adv. VSS Leg | -6/Data Miner | Free Micro-nuke Launcher | -6/Data Miner | Free Adv. Cryofiber Web | -6/Data Miner | Free Assault Drone Bay | -4/Zhirov | Free Exp. Heat Sink | -4/Zhirov | Free Exp. Optical Array | -4/Zhirov | Free Imp. Arc Thrower | -4/Zhirov | Free Adv. Surge Thruster | -3/Research | Scanalyzed Robot Schematics ------------------ M-22 Extractor | -6/Data Miner | Free Y-54 Guardian | -6/Data Miner | Free Y-64 Sentinel | -6/Data Miner | Free Fabricated ------------ Nothing Repaired ---------- Nothing Studied --------- Imp. Grenade Launcher | -6/Factory | Hacked Hyp. Gauss Rifle | -6/Factory | Hacked Com. Wheel | -6/Factory | Hacked Arm. Wheel | -5/Factory | Hacked Imp. Datajack | -5/Factory | Hacked Variable Charge Gun | -5/Factory | Hacked Mass Driver | -5/Factory | Hacked Adv. Surge Thruster | -3/Research | Hacked Alien Tech Used ----------------- Integrated Dissipator Transdimensional Reconstructor Achievements -------------- None Challenges ------------ None Game ------ Seed StrikeDefenseRedistributor Manual? 0 Play Time 01:50:06 Cumulative 156.7 hours Start 2026.07.08 @ 15:19:19 End 2026.07.08 @ 17:35:40 Sessions 1 Manual Loads 0 Difficulty Rogue Special Mode None Game No. 89 Rogue 89 Adventurer 0 Explorer 0 Win Type - Total 3 Types 3/0/0/0/0/0/0/0/0/0 Lore% 68 Gallery% 60 Achievement% 51 Wizard Run 0 Options --------- Layout 1 ASCII 0 Keyboard 0 Movement Numpad Keybinds 0 Fullscreen 1 Font 24/Smallcaps Map View 50x35 Zoom Use 0% Tactical HUD 1 Map Filters NONE Filters NONE Steam 1 RUN: f559a42a-2413-4426-8d33-7259213201d2